bitfinex/quotes_SOLUSD_20250118
["timestamp","ask_amount","ask_price","bid_price","bid_amount"]
[1737218194427,0.7450452,251.72,251.42,31.66543919]
[1737218194648,31.66543919,251.79,251.55,31.66543919]
[1737218194938,27.24292298,252.09,251.74,31.66543919]
[1737218194939,31.66543919,251.86,251.74,31.66543919]
[1737218195125,36.37975911,251.9,251.78,31.66543919]
[1737218195326,36.37975911,251.9,251.76,31.66543919]
[1737218195327,31.66543919,251.88,251.76,31.66543919]
[1737218195549,0.74455178,251.87,251.76,31.66543919]
[1737218195721,0.74455178,251.87,251.68,31.66543919]
[1737218195722,0.74455178,251.87,251.79,31.66543919]
[1737218195926,47.55458619,251.92,251.83,31.66543919]
[1737218195927,19.858747,251.92,251.83,31.66543919]
[1737218196125,15.889147,251.92,251.83,31.66543919]
[1737218196627,0.063,251.87,251.83,31.66543919]
[1737218197851,0.063,251.87,251.85,31.66543919]
[1737218198049,0.063,251.87,251.79,31.66543919]
[1737218198341,4.0334,251.87,251.77,31.66543919]
[1737218198528,31.66543919,251.84,251.73,31.66543919]
[1737218198729,31.66543919,251.86,251.75,31.66543919]
[1737218198945,0.063,251.87,251.81,31.66543919]
[1737218199120,0.063,251.87,251.8,23.776884]
[1737218199325,0.063,251.87,251.85,31.66543919]
[1737218199625,0.063,251.87,251.79,31.66543919]
[1737218199825,4.0333,251.87,251.79,31.66543919]
[1737218200024,0.063,251.87,251.79,31.66543919]
[1737218200342,31.66543919,251.83,251.73,31.66543919]
[1737218200641,0.063,251.87,251.78,31.66543919]
[1737218200849,4.77776788,251.87,251.76,31.66543919]
[1737218201056,0.063,251.87,251.78,31.66543919]
[1737218201227,4.0333,251.87,251.76,31.66543919]
[1737218201428,32.41004906,251.86,251.74,31.66543919]
[1737218201644,0.063,251.87,251.76,31.66543919]
[1737218201844,0.063,251.87,251.8,31.66543919]
[1737218202353,31.82,251.78,251.33,11.17234535]
[1737218202526,19.22288229,251.66,251.32,13.2943]
[1737218202833,31.66543919,251.49,251.4,3.9776]
[1737218203035,31.66543919,251.51,251.41,4.0074]
[1737218203255,31.66543919,251.51,251.41,0.03]
[1737218203423,31.66543919,251.49,251.41,0.03]
[1737218203627,31.66543919,251.45,251.41,0.03]
[1737218203849,31.66543919,251.47,251.41,0.03]
[1737218204149,31.66543919,251.52,251.41,0.03]
[1737218204351,31.66543919,251.48,251.41,0.03]
[1737218204548,31.66543919,251.54,251.41,31.69543919]
[1737218204726,31.66543919,251.56,251.46,20.0]
[1737218204927,31.66543919,251.54,251.46,20.0]
[1737218205229,0.74537985,251.6,251.41,0.03]
[1737218205448,31.66543919,251.53,251.41,31.69543919]
[1737218205748,31.66543919,251.53,251.44,20.0]
[1737218206249,21.44106729,251.7,251.42,3.9774]
[1737218206250,31.66543919,251.52,251.42,3.9774]
[1737218206452,3.9737,251.65,251.41,0.03]
[1737218206453,31.66543919,251.46,251.41,0.03]
[1737218206753,31.66543919,251.43,251.41,0.03]
[1737218206958,32.41132824,251.42,251.41,0.03]
[1737218207140,32.41132824,251.42,251.29,500.0]
[1737218207342,31.66543919,251.31,251.29,500.0]
[1737218207561,31.66543919,251.37,251.29,500.0]
[1737218208142,31.66543919,251.35,251.29,500.0]
[1737218208342,31.66543919,251.33,251.29,500.0]
[1737218208545,31.66543919,251.35,251.29,500.0]
[1737218208752,31.66543919,251.37,251.29,500.0]
[1737218209173,31.66543919,251.35,251.29,500.0]
[1737218209644,31.66543919,251.38,251.29,500.0]
[1737218209841,31.66543919,251.42,251.31,31.66543919]
[1737218210056,31.66543919,251.41,251.29,535.64483919]
[1737218210360,31.66543919,251.46,251.36,20.0]
[1737218210660,31.66543919,251.41,251.3,31.66543919]
[1737218210866,31.66543919,251.39,251.29,503.9794]
[1737218211165,31.66543919,251.42,251.3,31.66543919]
[1737218211463,14.6606337,251.53,251.32,20.0]
[1737218211765,31.66543919,251.43,251.32,51.66543919]
[1737218212063,31.66543919,251.45,251.33,3.9788]
[1737218212986,31.66543919,251.47,251.36,31.66543919]
[1737218213452,31.66543919,251.49,251.38,31.66543919]
[1737218213653,31.66543919,251.49,251.36,31.66543919]
[1737218213875,31.66543919,251.47,251.36,31.66543919]
[1737218214169,31.66543919,251.55,251.29,509.9486]
[1737218214170,31.41523919,251.4,251.29,531.66543919]
[1737218214367,31.41523919,251.4,251.31,31.66543919]
[1737218214556,31.66543919,251.44,251.33,31.66543919]
[1737218214757,31.66543919,251.38,251.29,503.9793]
[1737218214954,31.66543919,251.44,251.33,31.66543919]
[1737218215160,31.66543919,251.42,251.31,31.66543919]
[1737218215555,0.74570116,251.52,251.29,503.9793]
[1737218215556,31.66543919,251.49,251.38,31.66543919]
[1737218215862,31.66543919,251.46,251.35,31.66543919]
[1737218216071,31.66543919,251.48,251.37,31.66543919]
[1737218216251,31.66543919,251.5,251.39,31.66543919]
[1737218216455,3.975,251.57,251.38,20.0]
[1737218216653,31.66543919,251.52,251.41,31.66543919]
[1737218216964,31.66543919,251.47,251.37,31.66543919]
[1737218217157,31.66543919,251.51,251.39,31.66543919]
[1737218217361,31.66543919,251.53,251.41,31.66543919]
[1737218217565,31.66543919,251.56,251.45,31.66543919]
[1737218218069,31.66543919,251.6,251.49,31.66543919]
[1737218218246,31.66543919,251.56,251.45,31.66543919]
[1737218218447,0.74542332,251.67,251.55,31.66543919]
[1737218218643,31.66543919,251.71,251.61,31.66543919]
[1737218218847,0.74511383,251.7,251.46,42.94]
[1737218219156,31.66543919,251.66,251.56,31.66543919]
[1737218219348,0.74511684,251.65,251.56,31.66543919]
[1737218219547,31.66543919,251.66,251.56,31.66543919]
[1737218219858,31.66543919,251.59,251.45,12.3266]
[1737218220046,31.66543919,251.57,251.47,31.66543919]
[1737218220248,0.74537574,251.65,251.29,531.66543919]
[1737218220249,31.66543919,251.55,251.44,31.66543919]
[1737218220460,0.74543613,251.54,251.43,31.66543919]
[1737218220664,31.66543919,251.57,251.47,31.66543919]
[1737218220971,31.66543919,251.59,251.49,31.66543919]
[1737218221171,0.74546006,251.63,251.51,31.66543919]
[1737218221485,31.66543919,251.58,251.47,31.66543919]
[1737218222178,35.64033919,251.58,251.47,31.66543919]
[1737218222374,31.66543919,251.56,251.47,35.64193919]
[1737218222574,3.975,251.57,251.47,3.9765]
[1737218222761,3.975,251.57,251.41,0.03]
[1737218222762,31.66543919,251.54,251.43,31.66543919]
[1737218223068,31.66543919,251.52,251.41,35.67293919]
[1737218223275,31.66543919,251.56,251.47,31.66543919]
[1737218223569,31.66543919,251.56,251.41,4.0075]
[1737218223570,31.66543919,251.6,251.49,31.66543919]
[1737218223777,31.66543919,251.58,251.49,31.66543919]
[1737218223953,31.66543919,251.62,251.51,31.66543919]
[1737218224156,9.06845441,251.74,251.61,31.66543919]
[1737218224457,31.66543919,251.68,251.57,31.66543919]
[1737218224667,31.66543919,251.66,251.55,31.66543919]
[1737218224969,0.74509465,251.65,251.55,31.66543919]
[1737218225161,31.66543919,251.62,251.51,31.66543919]
[1737218225348,31.66543919,251.64,251.53,31.66543919]
[1737218225552,0.74523569,251.72,251.57,31.66543919]
[1737218225553,31.66543919,251.66,251.57,31.66543919]
[1737218225865,31.66543919,251.64,251.53,31.66543919]
[1737218226254,13.9037,251.73,251.52,3.9757]
[1737218226255,31.66543919,251.62,251.52,3.9757]
[1737218226460,31.66543919,251.64,251.53,31.66543919]
[1737218226756,31.66543919,251.62,251.52,3.9757]
[1737218226972,31.66543919,251.6,251.52,3.9757]
[1737218227161,31.66543919,251.6,251.48,35.64183919]
[1737218227472,31.66543919,251.62,251.5,31.66543919]
[1737218227651,31.66543919,251.54,251.44,3.977]
[1737218227857,31.66543919,251.5,251.42,3.9773]
[1737218228158,31.66543919,251.52,251.41,31.69543919]
[1737218228360,31.66543919,251.54,251.43,31.66543919]
[1737218229378,31.66543919,251.52,251.43,31.66543919]
[1737218229583,31.66543919,251.54,251.43,31.66543919]
[1737218230284,31.66543919,251.49,251.41,0.03]
[1737218230462,0.74556158,251.6,251.48,31.66543919]
[1737218230774,31.66543919,251.62,251.53,31.66543919]
[1737218231076,35.63943919,251.64,251.53,31.66543919]
[1737218231276,35.63943919,251.64,251.41,0.03]
[1737218231277,31.66543919,251.55,251.43,31.66543919]
[1737218231578,31.66543919,251.52,251.43,31.66543919]
[1737218231766,0.74558451,251.54,251.45,31.66543919]
[1737218231767,31.66543919,251.54,251.45,31.66543919]
[1737218232182,31.66543919,251.54,251.44,31.66543919]
[1737218232480,31.66543919,251.54,251.41,0.03]
[1737218232481,31.66543919,251.58,251.46,31.66543919]
[1737218232658,31.66543919,251.58,251.48,31.66543919]
[1737218233386,3.9742,251.62,251.52,31.66543919]
[1737218233387,31.66543919,251.62,251.52,31.66543919]
[1737218234362,31.66543919,251.62,251.53,3.9756]
[1737218234857,31.66543919,251.68,251.48,9.9408]
[1737218234858,31.66543919,251.57,251.48,31.66543919]
[1737218235160,0.74540661,251.56,251.48,31.66543919]
[1737218235874,31.66543919,251.53,251.43,0.03]
[1737218236079,31.66543919,251.51,251.43,0.03]
[1737218236263,31.66543919,251.49,251.43,0.03]
[1737218237080,31.66543919,251.51,251.43,0.03]
[1737218237276,3.9751,251.56,251.29,539.97103919]
[1737218237277,23.776884,251.43,251.29,500.0]
[1737218237480,0.74609925,251.42,251.32,31.66543919]
[1737218237691,31.66543919,251.41,251.31,31.66543919]
[1737218238289,31.66543919,251.43,251.31,31.66543919]
[1737218238475,31.66543919,251.43,251.33,31.66543919]
[1737218238662,31.66543919,251.43,251.31,31.66543919]
[1737218238981,31.66543919,251.43,251.33,31.66543919]
[1737218239194,31.66543919,251.45,251.33,31.66543919]
[1737218239390,0.74569783,251.44,251.29,500.0]
[1737218239564,31.66543919,251.42,251.3,35.64473919]
[1737218239766,31.66543919,251.42,251.31,31.66543919]
[1737218240381,31.66543919,251.46,251.35,31.66543919]
[1737218240561,31.66543919,251.46,251.36,3.9783]
[1737218240761,31.66543919,251.42,251.36,3.9783]
[1737218241063,31.66543919,251.42,251.32,3.9789]
[1737218241458,31.66543919,251.42,251.33,31.66543919]
[1737218241859,31.66543919,251.48,251.37,31.66543919]
[1737218242064,31.66543919,251.6,251.5,20.0]
[1737218242381,31.66543919,251.56,251.47,31.66543919]
[1737218242686,31.66543919,251.62,251.54,20.0]
[1737218243005,31.66543919,251.6,251.49,31.66543919]
[1737218243293,31.66543919,251.58,251.49,31.66543919]
[1737218243582,31.66543919,251.6,251.51,31.66543919]
[1737218243787,31.66543919,251.62,251.53,31.66543919]
[1737218244084,31.66543919,251.6,251.49,31.66543919]
[1737218244312,31.66543919,251.62,251.53,31.66543919]
[1737218244604,31.66543919,251.62,251.51,51.66543919]
[1737218244809,31.66543919,251.6,251.49,45.58243919]
[1737218244980,9.9315,251.73,251.53,31.66543919]
[1737218244981,31.66543919,251.64,251.53,31.66543919]
[1737218245177,31.66543919,251.64,251.56,20.0]
[1737218245393,31.66543919,251.64,251.53,31.66543919]
[1737218245678,31.66543919,251.6,251.49,45.58243919]
[1737218245874,31.66543919,251.62,251.51,31.66543919]
[1737218246586,0.74514153,251.7,251.49,9.9407]
[1737218246587,31.66543919,251.64,251.53,31.66543919]
[1737218247185,31.66543919,251.62,251.53,31.66543919]
[1737218247387,31.66543919,251.64,251.53,31.66543919]
[1737218247696,31.66543919,251.77,251.65,20.0]
[1737218248019,31.66543919,251.77,251.67,31.66543919]
[1737218248380,31.66543919,251.79,251.61,20.0]
[1737218248580,12.9155,251.9,251.6,20.0]
[1737218248581,31.66543919,251.83,251.74,31.66543919]
[1737218248911,0.063,251.84,251.82,31.66543919]
[1737218249485,0.0001,251.87,251.86,43.776884]
[1737218249791,8.3870464,251.98,251.86,43.776884]
[1737218249792,8.3870464,251.98,251.86,31.66543919]
[1737218249994,8.3870464,251.98,251.94,31.66543919]
[1737218250205,8.3870464,251.98,251.96,31.66543919]
[1737218250395,0.063,252.01,251.96,31.66543919]
[1737218250903,31.66543919,251.98,251.84,31.66543919]
[1737218251107,31.66543919,251.94,251.84,31.66543919]
[1737218251404,31.66543919,251.96,251.84,31.66543919]
[1737218251582,31.66543919,251.96,251.86,31.66543919]
[1737218251784,0.80715883,252.01,251.82,35.63643919]
[1737218251785,31.66543919,251.94,251.82,35.63643919]
[1737218251988,31.66543919,251.94,251.46,5.981004]
[1737218251989,31.66543919,251.88,251.78,35.63713919]
[1737218252213,31.66543919,251.88,251.72,9.9316]
[1737218252506,0.74447658,251.93,251.85,31.66543919]
[1737218252708,0.063,252.01,251.91,31.66543919]
[1737218253018,31.66543919,251.92,251.82,31.66543919]
[1737218253302,31.66543919,251.84,251.72,31.66543919]
[1737218253496,31.66543919,251.81,251.7,31.66543919]
[1737218253887,31.66543919,251.83,251.72,31.66543919]
[1737218254088,31.66543919,251.85,251.74,31.66543919]
[1737218254482,31.66543919,251.81,251.7,31.66543919]
[1737218254681,31.66543919,251.81,251.58,13.9119]
[1737218254682,31.66543919,251.72,251.58,13.9119]
[1737218255012,31.66543919,251.66,251.56,3.9751]
[1737218255385,31.66543919,251.62,251.51,31.66543919]
[1737218255705,31.66543919,251.62,251.5,31.66543919]
[1737218256082,31.66543919,251.54,251.42,31.66543919]
[1737218256283,31.66543919,251.52,251.41,16.0553]
[1737218256515,31.66543919,251.52,251.42,31.66543919]
[1737218256701,3.9739,251.64,251.49,31.66543919]
[1737218256904,31.66543919,251.61,251.49,31.66543919]
[1737218257203,32.41061749,251.67,251.54,31.66543919]
[1737218257396,31.66543919,251.65,251.54,31.66543919]
[1737218257708,31.66543919,251.67,251.56,31.66543919]
[1737218257896,31.66543919,251.75,251.65,31.66543919]
[1737218258089,31.66543919,251.75,251.61,20.0]
[1737218258090,31.66543919,251.75,251.63,31.66543919]
[1737218258290,31.66543919,251.73,251.61,51.66543919]
[1737218258487,31.66543919,251.71,251.61,31.66543919]
[1737218258805,31.66543919,251.69,251.57,31.66543919]
[1737218259102,31.66543919,251.67,251.56,3.9751]
[1737218260409,31.66543919,251.63,251.51,35.64133919]
[1737218260591,31.66543919,251.63,251.56,0.03]
[1737218260795,31.66543919,251.61,251.56,0.03]
[1737218261102,31.66543919,251.57,251.56,0.03]
[1737218262618,20.0,251.54,251.41,0.03]
[1737218262795,31.66543919,251.44,251.41,0.03]
[1737218262991,63.33087838,251.42,251.41,0.03]
[1737218263192,23.776884,251.41,251.29,500.0]
[1737218263398,31.66543919,251.31,251.29,500.0]
[1737218264096,3.9793,251.3,251.29,500.0]
[1737218264293,36.39091662,251.3,251.29,332.69195805]
[1737218264509,36.39094374,251.3,251.29,302.58936049]
[1737218264907,36.39094374,251.3,251.29,281.19746049]
[1737218265104,36.39094374,251.3,251.29,260.40546049]
[1737218265296,36.39094374,251.3,251.29,236.34666049]
[1737218265504,36.39094374,251.3,251.29,116.35039925]
[1737218265708,36.39094374,251.3,251.29,82.79129925]
[1737218265709,60.16782774,251.3,251.29,82.79129925]
[1737218265912,60.16782774,251.3,251.29,51.43029925]
[1737218266106,23.776884,251.25,251.15,0.03]
[1737218266416,32.41164374,251.3,251.15,0.03]
[1737218266417,31.66543919,251.18,251.15,0.03]
[1737218266716,31.66543919,251.16,251.15,0.03]
[1737218267495,31.66543919,251.18,251.15,0.03]
[1737218267721,31.66543919,251.21,251.15,0.03]
[1737218268022,31.66543919,251.24,251.15,0.03]
[1737218268597,31.66543919,251.26,251.16,31.66543919]
[1737218268997,0.74626823,251.34,251.15,0.03]
[1737218269228,31.66543919,251.32,251.23,31.66543919]
[1737218269611,0.74611581,251.41,251.15,0.03]
[1737218269612,31.66543919,251.24,251.15,0.03]
[1737218269925,32.4117901,251.28,251.17,31.66543919]
[1737218270221,31.66543919,251.26,251.15,31.69543919]
[1737218270424,31.66543919,251.28,251.17,31.66543919]
[1737218270615,31.66543919,251.3,251.19,31.66543919]
[1737218271109,31.66543919,251.3,251.15,4.0115]
[1737218271110,31.66543919,251.32,251.21,31.66543919]
[1737218271310,31.66543919,251.3,251.19,31.66543919]
[1737218271608,31.66543919,251.28,251.17,31.66543919]
[1737218272005,31.66543919,251.3,251.19,31.66543919]
[1737218272316,31.66543919,251.26,251.15,31.69543919]
[1737218272502,31.66543919,251.25,251.15,0.03]
[1737218272711,0.063,251.3,251.18,31.66543919]
[1737218272901,31.66543919,251.26,251.16,31.66543919]
[1737218273126,31.66543919,251.24,251.15,0.03]
[1737218273305,31.66543919,251.2,251.15,0.03]
[1737218273614,0.74646211,251.28,251.15,0.03]
[1737218273823,31.66543919,251.23,251.15,0.03]
[1737218274022,31.66543919,251.29,251.18,31.66543919]
[1737218274224,0.063,251.3,251.22,31.66543919]
[1737218274225,4.0424,251.3,251.22,31.66543919]
[1737218274425,4.0424,251.3,251.2,31.66543919]
[1737218274606,0.063,251.3,251.22,31.66543919]
[1737218274813,0.063,251.3,251.26,31.66543919]
[1737218275013,0.063,251.3,251.24,31.66543919]
[1737218275210,0.063,251.3,251.22,31.66543919]
[1737218275412,31.66543919,251.27,251.15,0.03]
[1737218275621,31.66543919,251.29,251.18,31.66543919]
[1737218275803,31.66543919,251.27,251.18,31.66543919]
[1737218276011,31.66543919,251.22,251.15,0.03]
[1737218276223,31.58043919,251.22,251.15,0.03]
[1737218276432,0.74644539,251.21,251.15,0.03]
[1737218276734,31.66543919,251.19,251.15,0.03]
[1737218276907,31.66543919,251.16,251.15,0.03]
[1737218277725,35.64693919,251.16,251.15,0.03]
[1737218278426,20.0,251.13,251.04,91.98386876]
[1737218278630,31.66543919,251.06,251.04,91.98386876]
[1737218279012,31.66543919,251.08,251.04,91.98386876]
[1737218279209,31.66543919,251.05,251.0,2.0]
[1737218279406,57.42073919,251.16,250.67,13.0688]
[1737218279407,31.66543919,251.01,250.82,31.66543919]
[1737218279604,31.66543919,251.01,250.67,13.0688]
[1737218279605,31.66543919,251.01,250.9,31.66543919]
[1737218279833,31.66543919,251.08,250.97,31.66543919]
[1737218280125,31.66543919,251.14,251.04,31.66543919]
[1737218280308,31.66543919,251.14,250.92,31.66543919]
[1737218280309,31.66543919,251.04,250.92,31.66543919]
[1737218280514,0.74690484,251.23,250.91,13.0688]
[1737218280700,31.66543919,251.2,251.08,31.66543919]
[1737218280904,31.66543919,251.26,251.13,31.66543919]
[1737218281128,31.66543919,251.26,250.94,42.98]
[1737218281129,31.66543919,251.2,251.09,31.66543919]
[1737218281424,31.66543919,251.18,251.07,31.66543919]
[1737218281622,31.66543919,251.2,251.07,31.66543919]
[1737218281828,31.66543919,251.16,251.05,31.66543919]
[1737218282027,31.66543919,251.11,251.0,31.66543919]
[1737218282210,31.66543919,251.13,251.02,31.66543919]
[1737218282406,31.66543919,251.11,251.0,31.66543919]
[1737218282623,31.66543919,251.13,251.02,31.66543919]
[1737218282829,31.66543919,251.15,251.02,31.66543919]
[1737218283007,31.66543919,251.13,251.02,31.66543919]
[1737218283326,31.66543919,251.17,251.06,31.66543919]
[1737218283637,31.66543919,251.13,251.03,31.66543919]
[1737218283811,35.64703919,251.15,251.03,31.66543919]
[1737218284008,35.64703919,251.15,250.97,31.66543919]
[1737218284009,31.66543919,251.07,250.97,31.66543919]
[1737218284211,31.66543919,250.99,250.81,13.0688]
[1737218284421,31.66543919,250.95,250.84,31.66543919]
[1737218284733,31.66543919,250.99,250.88,31.66543919]
[1737218284910,0.74713689,250.98,250.88,31.66543919]
[1737218285110,0.74719635,250.98,250.88,31.66543919]
[1737218285331,31.66543919,250.97,250.86,31.66543919]
[1737218285539,0.74715394,250.96,250.88,31.66543919]
[1737218285824,4.73170832,250.98,250.88,31.16543919]
[1737218286010,31.66543919,250.89,250.81,13.0688]
[1737218286331,0.74747878,250.88,250.79,0.03]
[1737218286630,31.66543919,250.83,250.79,0.03]
[1737218286815,31.66543919,250.81,250.79,0.03]
[1737218287013,0.74778922,250.8,250.79,0.03]
[1737218287224,0.7477257,250.8,250.79,0.03]
[1737218287422,31.66543919,250.83,250.79,0.03]
[1737218287615,31.66543919,250.87,250.79,0.03]
[1737218287807,31.66543919,250.87,250.64,31.66543919]
[1737218287808,31.66543919,250.93,250.82,31.66543919]
[1737218288012,0.74730196,250.92,250.82,31.66543919]
[1737218288222,0.74730196,250.92,250.69,13.9613]
[1737218288223,31.66543919,250.84,250.69,3.9889]
[1737218288409,31.66543919,250.82,250.71,31.66543919]
[1737218288728,0.74773425,250.81,250.71,31.66543919]
[1737218289126,31.66543919,250.84,250.73,31.66543919]
[1737218289427,31.66543919,250.94,250.83,31.66543919]
[1737218289627,0.74732678,251.0,250.9,31.66543919]
[1737218289830,0.74732678,251.0,250.79,13.0688]
[1737218289831,31.66543919,250.95,250.8,3.9872]
[1737218290013,0.74735446,251.02,250.8,3.9872]
[1737218290204,31.66543919,250.95,250.8,3.9872]
[1737218290408,0.74732459,250.94,250.79,13.0688]
[1737218290608,32.4126741,250.93,250.82,31.66543919]
[1737218290822,31.66543919,250.99,250.88,31.66543919]
[1737218291026,31.66543919,250.95,250.84,31.66543919]
[1737218291332,0.74728453,251.02,250.93,31.66543919]
[1737218291506,31.66543919,250.98,250.87,31.66543919]
[1737218291824,0.74724158,251.02,250.92,31.66543919]
[1737218292026,31.66543919,251.03,250.92,31.66543919]
[1737218292228,0.74704388,251.02,250.92,31.66543919]
[1737218292414,31.66543919,251.07,250.96,31.66543919]
[1737218292816,31.66543919,251.09,250.83,23.776884]
[1737218293129,32.41234586,251.15,251.04,31.66543919]
[1737218293430,31.66543919,251.13,251.03,31.66543919]
[1737218293635,31.66543919,251.07,250.95,31.66543919]
[1737218293817,31.66543919,251.01,250.89,31.66543919]
[1737218294024,31.66543919,250.95,250.83,31.66543919]
[1737218294220,31.66543919,250.89,250.69,7.7305]
[1737218294412,25.9113,251.05,250.69,7.7305]
[1737218294413,31.66543919,250.83,250.72,31.66543919]
[1737218294614,0.7476985,250.82,250.72,31.66543919]
[1737218295022,31.66543919,250.81,250.72,31.66543919]
[1737218295217,0.7476913,250.8,250.72,31.66543919]
[1737218295411,0.7476913,250.8,250.69,7.7305]
[1737218295412,31.66543919,250.79,250.69,7.7305]
[1737218295629,0.74781574,250.78,250.68,44.73423919]
[1737218296223,35.65313919,250.77,250.68,13.0688]
[1737218296531,31.66543919,250.73,250.63,31.66543919]
[1737218296727,31.66543919,250.71,250.61,31.66543919]
[1737218296929,11.97,250.49,250.01,3.9998]
[1737218297120,11.97,250.47,250.18,31.66543919]
[1737218297322,0.74939287,250.46,250.01,33.9986]
[1737218297627,31.66543919,250.38,250.24,31.66543919]
[1737218297829,31.66543919,250.31,250.17,31.66543919]
[1737218298032,31.66543919,250.31,250.18,3.9971]
[1737218298340,31.66543919,250.22,250.09,31.66543919]
[1737218298517,31.66543919,250.32,250.18,31.66543919]
[1737218298721,31.66543919,250.36,250.08,13.9955]
[1737218298920,30.0,250.73,250.08,13.9955]
[1737218298921,31.66543919,250.2,250.08,35.66413919]
[1737218299152,31.66543919,250.15,250.03,3.9995]
[1737218299344,31.66543919,250.11,250.0,5.9999]
[1737218299520,31.66543919,250.01,250.0,2.0]
[1737218300036,4.0,250.0,249.64,4.0057]
[1737218300237,4.0,250.0,249.31,43.06]
[1737218300238,31.66543919,249.7,249.47,12.2944]
[1737218300443,198.61631936,249.96,249.5,4.0078]
[1737218300621,20.2875523,249.85,249.29,12.2944]
[1737218300820,198.61631936,249.86,249.29,12.2944]
[1737218300821,198.61631936,249.76,249.29,44.27697254]
[1737218301034,31.98257254,249.37,249.29,12.2944]
[1737218301232,31.98257254,249.3,249.18,4.0131]
[1737218301449,31.98257254,249.24,249.18,4.0131]
[1737218301637,1.60180549,249.54,249.14,61.77079264]
[1737218301822,31.98257254,249.33,249.2,31.98257254]
[1737218302022,31.98257254,249.33,249.14,61.77079264]
[1737218302218,0.75220605,249.32,249.15,0.36507075]
[1737218302430,0.75220605,249.32,249.18,31.98257254]
[1737218302431,32.73479705,249.32,249.18,31.98257254]
[1737218302742,32.73479705,249.32,249.15,0.36507075]
[1737218302743,31.98257254,249.43,249.19,0.36438298]
[1737218302949,31.98257254,249.41,249.27,31.98257254]
[1737218303123,24.0403,249.58,249.28,0.36465668]
[1737218303330,24.0403,249.58,249.14,61.77079264]
[1737218303331,0.7516678,249.57,249.33,31.98257254]
[1737218303641,0.7516678,249.57,249.4,31.98257254]
[1737218303840,200.6257636,249.85,249.16,43.16]
[1737218303841,0.75180031,249.64,249.21,200.6257636]
[1737218304023,0.7513577,249.67,249.22,12.2944]
[1737218304227,31.98257254,249.77,249.62,31.98257254]
[1737218304428,0.75075349,249.76,249.62,31.98257254]
[1737218304622,5.568e-05,249.78,249.6,12.2944]
[1737218305045,5.568e-05,249.78,249.7,31.98257254]
[1737218305545,31.98257254,249.71,249.47,7.61]
[1737218305751,31.98257254,249.66,249.52,31.98257254]
[1737218305933,31.98257254,249.71,249.57,31.98257254]
[1737218306126,31.98257254,249.69,249.48,4.0083]
[1737218306327,0.75111672,249.68,249.48,4.0083]
[1737218306828,0.75108299,249.85,249.66,31.98257254]
[1737218307027,0.75072552,249.98,249.83,31.98257254]
[1737218307238,200.6257636,250.25,249.73,31.98257254]
[1737218307239,31.98257254,250.03,249.89,31.98257254]
[1737218307569,0.75009604,250.02,249.75,12.2944]
[1737218307844,31.98257254,249.89,249.75,31.98257254]
[1737218308081,0.75039235,250.08,249.8,31.98257254]
[1737218308236,3.9988,250.07,249.89,31.98257254]
[1737218308433,31.98257254,249.91,249.83,4.0027]
[1737218308638,0.75007444,250.06,249.68,10.0124]
[1737218308639,31.98257254,249.84,249.68,10.0124]
[1737218308838,31.98257254,249.73,249.62,0.03]
[1737218309040,31.98257254,249.71,249.62,0.03]
[1737218309230,31.98257254,249.7,249.62,0.03]
[1737218309427,0.75089444,249.69,249.62,0.03]
[1737218309648,31.98257254,249.68,249.62,0.03]
[1737218309837,0.75102521,249.85,249.62,0.03]
[1737218310030,31.98257254,249.66,249.62,0.03]
[1737218310441,31.98257254,249.64,249.62,0.03]
[1737218310747,0.75121756,249.63,249.62,0.03]
[1737218310949,20.0,249.6,249.37,12.2944]
[1737218311143,31.98257254,249.42,249.29,31.98257254]
[1737218311348,31.98257254,249.4,249.27,31.98257254]
[1737218311825,31.98257254,249.43,249.31,31.98257254]
[1737218312031,31.98257254,249.62,249.42,31.98257254]
[1737218312227,0.75128519,249.61,249.49,31.98257254]
[1737218312434,4.0046,249.71,249.51,31.98257254]
[1737218312647,23.00588605,249.94,249.35,14.0364]
[1737218312648,0.75116451,249.7,249.57,20.0]
[1737218312845,31.98257254,249.74,249.63,31.98257254]
[1737218313049,31.98257254,249.66,249.54,31.98257254]
[1737218313251,32.73344123,249.73,249.57,31.98257254]
[1737218313252,31.98257254,249.69,249.57,31.98257254]
[1737218313547,31.98257254,249.71,249.59,31.98257254]
[1737218313849,0.75112883,249.7,249.41,31.98257254]
[1737218314147,31.98257254,249.53,249.41,31.98257254]
[1737218314447,31.98257254,249.51,249.39,31.98257254]
[1737218314651,31.98257254,249.64,249.5,31.98257254]
[1737218314956,32.73368606,249.63,249.5,31.98257254]
[1737218315332,31.98257254,249.61,249.5,31.98257254]
[1737218315529,0.75132829,249.6,249.34,31.98257254]